Cogmind - Beta 14 @@@ ROGUE MODE // 2024.10.16 @ 23:29:46 Player: morimori Result: Destroyed by D-53 Grenadier with Mini Grenade Launcher Performance ------------- Evolutions (1) 500 Regions Visited (4) 800 Robots Destroyed (84) 420 Value Destroyed (1537) 1537 Prototype IDs (0) 0 Alien Tech Used (0) 0 Bonus (0) 0 TOTAL SCORE: 3257 Bonus ------- None Cogmind --------- Core Integrity 0/400 Matter 295/300 Energy 265/265 System Corruption 1% Temperature Cool (0) Movement Rolling (155) Ox5 Location -9/Mines Parts ------- > --- POWER (1) -------- Improved Ion Engine > --- PROPULSION (2) --- Wheel > --- UTILITY (4) ------ High-capacity Storage Unit Improved Terrain Scan Processor > --- WEAPON (2) ------- High-powered Shotgun High-powered Shotgun > --- INVENTORY (20) --- Light Nuclear Core Improved Hover Unit Improved Hover Unit Improved Hover Unit Improved Hover Unit Improved Hover Unit Heat Sink Large Storage Unit High-capacity Matter Pod (200) Sensor Array Improved Terrain Scanner Hacking Suite Hacking Suite Hacking Suite Authchip [Processor] Authchip [Weapon] High-powered Shotgun High-powered Shotgun Rocket Launcher Peak State ------------ > --- POWER ------------ Improved Ion Engine > --- PROPULSION ------- Wheel Wheel > --- UTILITY ---------- High-capacity Storage Unit Improved Terrain Scanner Improved Terrain Scan Processor Seismic Detector > --- WEAPON ----------- High-powered Shotgun High-powered Shotgun > --- INVENTORY -------- Light Nuclear Core Improved Hover Unit Improved Hover Unit Improved Hover Unit Improved Hover Unit Improved Hover Unit Heat Sink Large Storage Unit High-capacity Matter Pod Sensor Array Improved Light Armor Plating Hacking Suite Hacking Suite Authchip [Processor] Authchip [Weapon] High-powered Shotgun High-powered Shotgun EMP Blaster Rocket Launcher [Rating: 22] Favorites ----------- Power Ion Engine Engine Ion Engine Propulsion Wheel Wheel Wheel Utility Seismic Detector Device Seismic Detector Storage High-capacity Storage Unit Processor Improved Targeting Computer Protection Light Armor Plating Weapon Assault Rifle Energy Gun Medium Laser Ballistic Gun Assault Rifle Launcher Rocket Launcher Build | -11 -10 -10 -9 -9 ------- Run | Yrd Mat Min Mat Min Slots Evolved 2 | . . . 2 . Power . | . . . . . Propulsion . | . . . . . Utility 2 | . . . 2 . Weapon . | . . . . . Parts Attached 72 | 8 17 10 35 2 Power 7 | 1 2 1 3 . Engine 7 | 1 2 1 3 . Core . | . . . . . Reactor . | . . . . . Propulsion 19 | 2 7 1 8 1 Treads . | . . . . . Leg . | . . . . . Wheel 19 | 2 7 1 8 1 Hover . | . . . . . Flight . | . . . . . Utility 19 | 3 5 2 8 1 Device 8 | 2 3 1 2 . Storage 5 | 1 1 1 2 . Processor 3 | . 1 . 2 . Hackware . | . . . . . Protection 3 | . . . 2 1 Artifact . | . . . . . Weapon 27 | 2 3 6 16 . Energy Gun 3 | 1 . 1 1 . Energy Cannon . | . . . . . Ballistic Gun 16 | 1 1 2 12 . Ballistic Cannon . | . . . . . Launcher 8 | . 2 3 3 . Special Weapon . | . . . . . Impact Weapon . | . . . . . Slashing Weapon . | . . . . . Piercing Weapon . | . . . . . Special Melee Weapon . | . . . . . Unidentified Prototypes . | . . . . . Parts Lost 15 | . 5 2 4 4 Power 1 | . 1 . . . Propulsion 7 | . 3 . 2 2 Utility 4 | . 1 . 1 2 Weapon 3 | . . 2 1 . Highest Loss Streak 4 | . 2 1 2 4 To Critical Strikes . | . . . . . Average Slot Usage (%) 96 | . 99 100 89 97 Engine 12 | . 14 14 11 11 Wheel 25 | . 27 28 21 20 Device 13 | . 11 14 13 19 Storage 12 | . 14 14 10 11 Processor 4 | . 1 . 10 11 Energy Gun 6 | . 8 12 . . Ballistic Gun 18 | . 18 12 21 22 Peak Build Rating 22 | 8 10 11 22 22 Average Rating 11 | 6 8 9 15 21 On Entrance 9 | . 8 9 10 22 Naked Turns . | . . . . . Heaviest Build 57 | 15 32 52 57 57 Greatest Support 32 | 32 32 26 26 20 Greatest Overweight (x) 5 | 2 1 2 5 5 Average Overweight (x) 1 | . . 1 2 2 Largest Inventory Capacity 20 | 8 15 20 20 20 Average Capacity 15 | 7 11 18 19 20 Most Carried 20 | 8 15 19 20 20 Average Carried 14 | 4 10 16 19 19 Final Capacity 20 | 8 15 20 20 20 Final Carried 20 | 8 15 18 20 19 Class Distribution -------------------- 53% | Scavenger-Mutant 46% | Mutant Dominant Class ---------------- Mutant | -10/Materials Scavenger-Mutant | -10/Mines Scavenger-Mutant | -9/Materials Scavenger-Mutant | -9/Mines Resources | -11 -10 -10 -9 -9 ----------- Run | Yrd Mat Min Mat Min Matter Collected 2221 | 383 543 333 879 83 Remotely . | . . . . . Salvage Created 2451 | 164 846 275 1166 . Parts 177 | 13 56 23 85 . Haulers Intercepted 5 | . 2 . 3 . Recyclers Shooed 2 | 1 1 . . . Parts Field Recycled . | . . . . . Retrieved Matter . | . . . . . Parts Self-Destructed . | . . . . . Prevented . | . . . . . Kills | -11 -10 -10 -9 -9 ------- Run | Yrd Mat Min Mat Min Combat Hostiles Destroyed 42 | . 16 7 19 . Guns 32 | . 14 2 16 . AOE 10 | . 2 5 3 . Classes Destroyed 12 | 3 6 . 3 . Worker 10 | 1 2 3 4 . Builder 2 | . 1 . 1 . Tunneler 4 | 3 . 1 . . Hauler 5 | . 2 . 3 . Recycler 7 | 1 1 1 4 . Mechanic 1 | . . . 1 . Operator 5 | . 3 . 2 . Watcher 8 | . 3 . 5 . Swarmer 13 | . 3 3 7 . Grunt 26 | . 13 4 9 . Duelist 1 | . . . 1 . Sentry 2 | . . . 2 . Best Kill Streak 6 | 3 5 3 6 . Combat Bots Only 6 | . 4 3 6 . Max Kills in Single Turn 1 | 1 1 1 1 . Gunslinging . | . . . . . Exploded 1 | . 1 1 1 . Melee . | . . . . . Uniques/NPCs Destroyed . | . . . . . Combat | -11 -10 -10 -9 -9 -------- Run | Yrd Mat Min Mat Min Hostile Shots Fired 191 | . 74 20 76 21 Missed 44 | . 20 5 17 2 Damage Taken 2393 | . 585 230 706 872 Core 610 | . 139 57 116 298 Absorbed by Shields . | . . . . . Regen/Repaired (Parts) 363 | . . . 363 . Core Remaining (%) 60 | 100 . 21 . . Volleys Fired 225 | 16 94 31 84 . Largest 2 | 2 2 2 2 . Hottest 85 | 70 70 70 85 . Shots Fired 424 | 32 185 46 161 . Gun 402 | 32 182 35 153 . Cannon . | . . . . . Launcher 22 | . 3 11 8 . Special . | . . . . . Kinetic 341 | 16 153 21 151 . Thermal 61 | 16 29 14 2 . Explosive 19 | . 3 11 5 . Electromagnetic 3 | . . . 3 . Robot Hit Streak 20 | 5 17 13 20 . Robot Miss Streak 6 | 4 4 6 6 . Penetration Max . | . . . . . Secondary Targets 3 | . . 1 2 . Max Gunslinging Chain 1 | . . 1 1 . Shots Hit Robots 272 | 16 120 28 108 . Core Hits 144 | 6 49 22 67 . Critical Kills . | . . . . . Critical Parts Destroyed . | . . . . . Critical Strikes 3 | 1 1 . 1 . Burn 2 | 1 1 . . . Destroy 1 | . . . 1 . Melee Attacks . | . . . . . Impact . | . . . . . Slashing . | . . . . . Piercing . | . . . . . Sneak Attacks . | . . . . . Combat Hostiles . | . . . . . Follow-up Attacks . | . . . . . Damage Inflicted 4303 | 203 1516 634 1950 . Guns 3333 | 203 1369 255 1506 . Cannons . | . . . . . Explosions 970 | . 147 379 444 . Melee . | . . . . . Ramming . | . . . . . Kinetic 2801 | 101 1109 116 1475 . Thermal 532 | 102 260 139 31 . Explosive 823 | . 147 379 297 . Electromagnetic 147 | . . . 147 . Impact . | . . . . . Slashing . | . . . . . Piercing . | . . . . . Highest Corruption 1 | . . . 1 1 Average Corruption 1 | . . . 1 1 Corruption Purged . | . . . . . Corruption Blocked . | . . . . . Effects 3 | . . . 2 1 Matter Fused 1 | . . . 1 . Heat Flow Errors 1 | . . . . 1 Data Loss (minor) 1 | . . . 1 . Overload Shots . | . . . . . Overflow Damage 37 | . . 11 26 . Projectiles . | . . . . . Explosions 37 | . . 11 26 . Melee . | . . . . . Knockbacks . | . . . . . Impact . | . . . . . Kinetic . | . . . . . Secondary . | . . . . . Self-Inflicted Damage 103 | . . 54 49 . Shots 5 | . . 2 3 . Rammed . | . . . . . Targets Rammed . | . . . . . Kicked . | . . . . . Crushed . | . . . . . Highest Temperature 156 | 54 156 77 62 97 Average Temperature 27 | 21 37 25 10 57 Received Heat Transfer 567 | . 255 84 228 . Siege Activations . | . . . . . Robots Corrupted . | . . . . . Combat Hostiles . | . . . . . Parts Fried . | . . . . . Impact Corruptions . | . . . . . Robots Melted . | . . . . . Combat Hostiles . | . . . . . Parts Melted 1 | . 1 . . . Heat Transferred 1668 | 370 851 407 40 . Parts Sabotaged . | . . . . . Parts Stolen . | . . . . . Parts Stripped . | . . . . . Power Chain Reactions . | . . . . . Alert | -11 -10 -10 -9 -9 ------- Run | Yrd Mat Min Mat Min Peak Influence 313 | 25 279 201 313 93 Initial 108 | . 16 108 19 93 Average 130 | 11 103 134 185 90 Maximum Alert Level 1 | . 1 1 1 . Low Security (%) 73 | 100 74 88 58 100 Level 1 26 | . 25 11 41 . Level 2 . | . . . . . Level 3 . | . . . . . Level 4 . | . . . . . Level 5 . | . . . . . High Security . | . . . . . Max Security . | . . . . . Squads Dispatched 11 | . 8 . 3 . Investigation 6 | . 5 . 1 . Extermination . | . . . . . Reinforcement 5 | . 3 . 2 . Assault . | . . . . . Garrison . | . . . . . Intercept . | . . . . . Searches Triggered . | . . . . . Construction Impeded . | . . . . . Haulers Reinforced . | . . . . . Active Scanning Responses . | . . . . . Cargo Convoy Interrupts . | . . . . . Stealth | -11 -10 -10 -9 -9 --------- Run | Yrd Mat Min Mat Min Distress Signals 3 | . . . 3 . Communications Jammed . | . . . . . Distress Signals . | . . . . . Times Spotted 71 | . 29 7 33 2 Peak Tracking Total 7 | . 3 3 7 2 Tactical Retreats 2 | . 2 . . . Traps | -11 -10 -10 -9 -9 ------- Run | Yrd Mat Min Mat Min Traps Triggered 3 | . 3 . . . Indirectly . | . . . . . Trap Hack Attempts . | . . . . . Triggered . | . . . . . Disarmed . | . . . . . Reprogrammed . | . . . . . Reused . | . . . . . Traps Extracted . | . . . . . Installed . | . . . . . Triggered . | . . . . . Machines | -11 -10 -10 -9 -9 ---------- Run | Yrd Mat Min Mat Min Machines Disabled . | . . . . . Max in Single Turn . | . . . . . Machines Repaired . | . . . . . Machines Dismantled . | . . . . . Machines Sabotaged . | . . . . . Overloaded Fab Kills . | . . . . . Hacking | -11 -10 -10 -9 -9 --------- Run | Yrd Mat Min Mat Min Machines Accessed 16 | . 5 . 11 . Terminals 10 | . 3 . 7 . Fabricators . | . . . . . Repair Stations 2 | . . . 2 . Recycling Units 3 | . 2 . 1 . Scanalyzers 1 | . . . 1 . Garrison Access . | . . . . . Total Hacks 48 | . 14 . 34 . Successful 33 | . 7 . 26 . Failed 15 | . 7 . 8 . Catastrophic 1 | . 1 . . . Database Lockouts . | . . . . . Manual 30 | . 14 . 16 . Terminals 30 | . 10 . 20 . Fabricators . | . . . . . Repair Stations 10 | . . . 10 . Recycling Units 6 | . 4 . 2 . Scanalyzers 2 | . . . 2 . Garrison Access . | . . . . . Terminal Hacks 10 | . 3 . 7 . Record 1 | . . . 1 . Part Schematic 1 | . . . 1 . Robot Analysis 3 | . 2 . 1 . Branch Access Points 1 | . . . 1 . Terminal Index 2 | . 1 . 1 . Recycling Unit Index 1 | . . . 1 . Zone Layout 1 | . . . 1 . Fabricator Hacks . | . . . . . Repair Station Hacks 10 | . . . 10 . Scan Component 5 | . . . 5 . Repair 5 | . . . 5 . Recycling Unit Hacks 1 | . . . 1 . Retrieve Components 1 | . . . 1 . Scanalyzer 2 | . . . 2 . Insert Component 1 | . . . 1 . Analyze 1 | . . . 1 . Garrison Access Hacks . | . . . . . Unauthorized Hacks 10 | . 4 . 6 . Terminals 7 | . 2 . 5 . Assimilate 2 | . . . 2 . Botnet 3 | . 1 . 2 . Operators 2 | . 1 . 1 . Fabricators . | . . . . . Repair Stations . | . . . . . Recycling Units 3 | . 2 . 1 . Tunnel 3 | . 2 . 1 . Scanalyzers . | . . . . . Garrison Access . | . . . . . Data Cores Recovered . | . . . . . Used . | . . . . . Hacking Detections 11 | . 4 . 7 . Full Trace Events 1 | . 1 . . . Feedback Events . | . . . . . Feedback Blocked . | . . . . . Robot Schematics Acquired . | . . . . . Robots Built . | . . . . . Authchips . | . . . . . Time . | . . . . . Total Robot Build Rating . | . . . . . Part Schematics Acquired 2 | . . . 2 . Parts Built . | . . . . . Authchips . | . . . . . Time . | . . . . . Total Part Build Rating . | . . . . . Parts Repaired 5 | . . . 5 . Time 130 | . . . 130 . Parts Recycled . | . . . . . Recycled Matter . | . . . . . Retrieved Matter . | . . . . . Retrieved Components . | . . . . . Parts Scanalyzed 1 | . . . 1 . Part Schematics Acquired 1 | . . . 1 . Parts Damaged . | . . . . . Bothacking | -11 -10 -10 -9 -9 ------------ Run | Yrd Mat Min Mat Min Used RIF Installer . | . . . . . Robots Hacked . | . . . . . Non-combat . | . . . . . Combat . | . . . . . Robot Hacks Applied . | . . . . . Relay Couplers Released . | . . . . . Fabnet Peak Effective % . | . . . . . Robots Rewired . | . . . . . Allies Hacked . | . . . . . Hacks Repelled . | . . . . . Allies | -11 -10 -10 -9 -9 -------- Run | Yrd Mat Min Mat Min Total Allies 1 | . . . 1 . Largest Group 1 | . . . 1 1 Highest-Rated Group 10 | . . . 10 10 Highest-Rated Ally 10 | . . . 10 10 Total Orders 7 | . . . 6 1 STAY 4 | . . . 3 1 FOLLOW 3 | . . . 3 . Ally Attacks . | . . . . . Total Damage . | . . . . . Kills . | . . . . . Allies Corrupted . | . . . . . Allies Melted . | . . . . . Intel | -11 -10 -10 -9 -9 ------- Run | Yrd Mat Min Mat Min Robot Analysis Total 3 | . 2 . 1 . Derelict Logs Recovered 3 | . . 2 . 1 Drone Launches . | . . . . . Drone Recoveries . | . . . . . Exploration | -11 -10 -10 -9 -9 ------------- Run | Yrd Mat Min Mat Min Turns Passed 5409 | 126 2618 800 1666 199 Spaces Moved 2587 | 49 831 613 926 168 Core 5 | 5 . . . . Treads . | . . . . . Legs . | . . . . . Wheels 2582 | 44 831 613 926 168 Hover . | . . . . . Flight . | . . . . . Fastest Speed 50 | 50 95 95 80 110 Average Speed 106 | 98 100 106 111 113 Slowest Speed 155 | 150 115 110 155 155 Overloaded Moves . | . . . . . Propulsion Burnouts . | . . . . . Robots Hopped . | . . . . . Cave-ins Triggered . | . . . . . Exploration Rate (%) 58 | 4 93 95 67 31 Regions Visited 4 Branch Regions 2 Pre-discovered Areas 3 | . 2 . 1 . Known Exits Taken 1 | . . . 1 . Unknown Exits Taken 3 | 1 1 1 . . Scrap Searched 1 | . . 1 . . Spaces Dug . | . . . . . Terrain Destroyed 166 | . 30 86 50 . Melee . | . . . . . Projectile . | . . . . . AOE 166 | . 30 86 50 . Terrain Rammed . | . . . . . Walls Destroyed . | . . . . . Machines Disabled . | . . . . . Actions | -11 -10 -10 -9 -9 --------- Run | Yrd Mat Min Mat Min Total 4853 | 91 2442 718 1426 176 Wait 1848 | 8 1473 53 308 6 Move 2583 | 48 830 612 925 168 Hop . | . . . . . Pick Up 70 | 9 15 6 40 . Fast Attach 15 | 7 2 . 6 . Attach 12 | . 5 2 4 1 Detach 4 | . 2 . 2 . Swap 45 | 1 10 8 25 1 Drop 51 | 2 11 6 32 . Fire 225 | 16 94 31 84 . Melee . | . . . . . Ram . | . . . . . Kick . | . . . . . Crush . | . . . . . Escape Stasis . | . . . . . Rewire . | . . . . . Trap . | . . . . . Miscellaneous . | . . . . . Route ------- -11/Scrapyard -10/Materials (discovered 4 exits: *Mat x2 / [*Min x2]) -10/Mines (discovered 2 exits: *Mat x2) -9/Materials (discovered 5 exits: [*Mat x2] / *Min x2 / Sto) -9/Mines (discovered 1 exit: [*Mat]) History --------- Turn | Location | Event 17 | -11/Scrapyard | Discovered new exit (range 16) 127 | -11/Scrapyard | Entered Materials 127 | -10/Materials | Discovered new exit (range 13) 318 | -10/Materials | Build established: Mutant 1440 | -10/Materials | Discovered new exit (range 13) 1627 | -10/Materials | Discovered new exit (range 13) 2167 | -10/Materials | Discovered new exit (range 16) 2426 | -10/Materials | Core integrity fell below 50% 2745 | -10/Materials | Entered Mines 2790 | -10/Mines | Build established: Scavenger-Mutant 2879 | -10/Mines | Learned location of 1 exit from Materials 2987 | -10/Mines | Discovered new exit (range 15) 3075 | -10/Mines | Discovered new exit (range 14) 3478 | -10/Mines | Learned Materials security intel 3545 | -10/Mines | Entered Materials 3545 | -9/Materials | Evolved 2 slots: Utility x2 3546 | -9/Materials | Identified exit to Storage 3899 | -9/Materials | Identified exit to Mines 3988 | -9/Materials | Discovered new exit (range 8) 4243 | -9/Materials | Repaired Hover Unit 4270 | -9/Materials | Repaired Hover Unit 4297 | -9/Materials | Repaired Hover Unit 4324 | -9/Materials | Repaired Hcp. Storage Unit 4935 | -9/Materials | Repaired Seismic Detector 5022 | -9/Materials | Discovered new exit (range 14) 5211 | -9/Materials | Entered Mines 5211 | -9/Mines | Accompanied by 1 ally 5250 | -9/Mines | Discovered new exit (range 9) 5340 | -9/Mines | Learned Materials terminal intel 5374 | -9/Mines | Assembled infested the area 5399 | -9/Mines | Core integrity fell below 50% 5403 | -9/Mines | Core integrity fell below 20% 5410 | -9/Mines | Destroyed by D-53 Grenadier with Mini Grenade Launcher Last Messages --------------- Data stored: Materials terminal intel. 05350_ K-01 Serf collects debris. 05374_ ALERT: Infestation in the mines, dispatching Demolisher response squad. 05386_ C-30 ARC bursts open, deploying its payload. 05386_ D-53 Grenadier unfolds itself. 05386_ Laser Drill disabled. 05387_ System corrupted: Heat flow error (+117). 05390_ Wheel destroyed. 05392_ Technician 2a destroyed. 05395_ The unstable cave ceiling collapses. 05398_ Imp. Light Armor Plating destroyed. 05404_ Wheel destroyed. 05405_ U-05 Engineer lays Concrete. 05407_ U-05 Engineer builds a Wall. 05407_ U-05 Engineer lays Concrete. 05408_ Seismic Detector destroyed. 05408_ U-05 Engineer lays Concrete. 05409_ The unstable cave ceiling collapses. 05409_ U-05 Engineer lays Concrete. Map ----- +----------------------------------------------------+ | ??????? ??????#?# ##??##?####?????????????? | | ??????#?????##??# ##?#?????#??????#???#??? | | ?????????#?#?????# ##??##?#?????##????#??? | | ????????????#??#?# ###????#??#?#?#?#?????? | | ???????? ####??#?## ###?######?#???#?###???? | | ?????? ####?#### ###### ###?##??#??#????? | | ????? #????## ###??# ##?#??#???????? | | ????? #?#?# #???### #????#??#?#??# | | ????? ##?# ##??##?# #??#?#????#??# | | ???## #### ##?#?#### ##?##?#?????#?# | | ?????? #?## ##?###### ####??#?#?#???# | | ??? ???? ?## ###### # #######??#??? | | ?????? ?#?# ### ### ## ###########? | | ??????????## ## ## ##?#????? | | ?????????#?# ## ## #??##??? | | ???????####?# u ###?#?#? | | ?????????#??# #?##???? | | ????????????# ### #??##?## | | ??????#??##?# ## # d ## ####???? | | ???????####?## # d #### ##??###? | | ???? #??#???### # #### ###?##?? | | ??????????#??### # ##### ######## | | ???????????#??### ## #### #######? | | ?????????##?????### ## #### ## | | ??????????#????#??# ## ######## ## | | ?????????#???#?? ?? # @ ## ######## ## | | ?????????#????? ??# # # ## ##?##??# ## | | ?????????? ?? ???? # ## ## #####?## ## | | ????????????#???#?? # ## ######## ## | | ???????#????#?###?? ##### ### #? | | ??????????????????? # < #?### #### ### #? | | ???????????????#??# # ### #### ### #? | | ??????????????????# ### ## ## ## #? | | ??????????????????#? ?#### ## #? | | ??????????????????#? ???#### ## = ! ## | | ?????????????????????? ?### u ## ####### | | ???????????????????? ? ### ### ####### | | ??????????????? ? ?? ??## ##### #####??? | | ????????????##??? ???? ?#? ###?#########?## | | ?????????????? ??? ??##?#### ##??#?#??#?#???# | | ??????????????????? ??##########??###?#?#?#?### | | ???????????????????#????#??#?#?##?#?###?##????# | | ???????????????????????##???##??##??#???###?##? | | ???????????????????#?????##?#?###?#?###???????# | | ????????????????????#??????##??#???#???###????? | | ????????????????????????#???###????#???????###? | | | | | | | | | +----------------------------------------------------+ Best States ------------- Heat Dissipation 28 Energy Generation 12 Energy Capacity 265 Matter Stores 300 Matter Capacity 300 Sight Range 16 Terrain Scan Range 16 Terrain Scan Density 110 Armor Coverage 150 Evasion (%) 44 Targeting Accuracy 6 Authchip Count 2 Item Schematics ----------------- Hacking Suite | -9/Materials | Scanalyzed Hcp. Storage Unit | -9/Materials | Hacked Robot Schematics ------------------ None Fabricated ------------ Nothing Alien Tech Used ----------------- None Achievements -------------- None Challenges ------------ None Game ------ Seed MissileFluxStorage Manual? 0 Play Time 00:37:45 Cumulative 267.0 hours Start 2024.10.16 @ 22:49:26 End 2024.10.16 @ 23:29:46 Sessions 1 Manual Loads 0 Difficulty Rogue Special Mode None Game No. 141 Rogue 141 Adventurer 0 Explorer 0 Win Type - Total 4 Types 4/0/0/0/0/0/0/0/0 Lore% 44 Gallery% 65 Achievement% 58 Wizard Run 0 Options --------- Layout 0 ASCII 0 Keyboard 1 Movement Vi Keybinds 0 Fullscreen 2 Font 18/SmallcapsGlow Map View 76x50 Zoom Use 0% Tactical HUD 1 Map Filters NONE Filters NONE Steam 1 RUN: a51226e4-d89b-412f-af76-fe2b791458a2